Cogmind - Beta 12 X1 @@@ ROGUE MODE // 2022.07.05 @ 15:06:36 Player: btmk16 Result: Destroyed by S-10 Pest with Light Assault Rifle Performance ------------- Evolutions (0) 0 Regions Visited (2) 400 Robots Destroyed (32) 160 Value Destroyed (414) 414 Prototype IDs (3) 60 Alien Tech Used (0) 0 Bonus (0) 0 TOTAL SCORE: 1034 Bonus ------- None Cogmind --------- Core Integrity 0/250 Matter 255/300 Energy 98/100 System Corruption 0% Temperature Cool (0) Movement Rolling (200) Ox8 Location -10/Mines Parts ------- > --- POWER (1) -------- (None) > --- PROPULSION (2) --- Wheel > --- UTILITY (2) ------ Huge Storage Unit > --- WEAPON (2) ------- Grenade Launcher > --- INVENTORY (25) --- Light Treads Light Treads Aluminum Leg Aluminum Leg High-capacity Storage Unit Visual Processing Unit Visual Processing Unit Sensor Array High-powered Tractor Beam High-powered Tractor Beam Medium Laser Small Laser Particle Gun Particle Gun Particle Gun Particle Gun Light Assault Rifle Welding Torch Peak State ------------ > --- POWER ------------ Light Ion Engine > --- PROPULSION ------- Light Treads Compact Wheel > --- UTILITY ---------- Huge Storage Unit Terrain Scanner > --- WEAPON ----------- Medium Laser Assault Rifle > --- INVENTORY -------- Light Ion Engine Light Treads Aluminum Leg Aluminum Leg Wheel Wheel High-capacity Storage Unit Visual Processing Unit Visual Processing Unit Sensor Array High-powered Tractor Beam High-powered Tractor Beam Medium Laser Small Laser Particle Gun Particle Gun Particle Gun Particle Gun Light Assault Rifle Light Assault Rifle Grenade Launcher Welding Torch [Rating: 10] Favorites ----------- Power Light Ion Engine Engine Light Ion Engine Propulsion Wheel Treads Light Treads Leg Aluminum Leg Wheel Wheel Utility Terrain Scanner Device Terrain Scanner Storage Huge Storage Unit Weapon Assault Rifle Energy Gun Medium Laser Ballistic Gun Assault Rifle Launcher Grenade Launcher Build | -11 -10 -10 ------- Run | Scr Mat Min Slots Evolved . | . . . Power . | . . . Propulsion . | . . . Utility . | . . . Weapon . | . . . Parts Attached 21 | . 17 4 Power 3 | . 2 1 Engine 3 | . 2 1 Core . | . . . Reactor . | . . . Propulsion 9 | . 8 1 Treads 1 | . 1 . Leg . | . . . Wheel 8 | . 7 1 Hover . | . . . Flight . | . . . Utility 4 | . 4 . Device 2 | . 2 . Storage 2 | . 2 . Processor . | . . . Hackware . | . . . Protection . | . . . Artifact . | . . . Weapon 5 | . 3 2 Energy Gun 2 | . 2 . Energy Cannon . | . . . Ballistic Gun 2 | . 1 1 Ballistic Cannon . | . . . Launcher 1 | . . 1 Special Weapon . | . . . Impact Weapon . | . . . Slashing Weapon . | . . . Piercing Weapon . | . . . Special Melee Weapon . | . . . Unidentified Prototypes . | . . . Parts Lost 10 | . 2 8 Power 2 | . . 2 Propulsion 4 | . 2 2 Utility 1 | . . 1 Weapon 3 | . . 3 Highest Loss Streak 6 | . 1 6 To Critical Strikes . | . . . Average Slot Usage (%) 98 | . 98 98 Engine 13 | . 13 13 Treads 2 | . 3 . Wheel 25 | . 23 27 Device 13 | . 13 13 Storage 14 | . 14 14 Energy Gun 13 | . 13 12 Ballistic Gun 14 | . 14 15 Naked Turns . | . . . Heaviest Build 88 | 12 88 88 Greatest Support 32 | 20 32 20 Greatest Overweight (x) 8 | . 5 8 Average Overweight (x) 3 | . 2 4 Largest Inventory Capacity 25 | . 25 25 Average Capacity 23 | . 23 25 Most Carried 22 | . 22 22 Average Carried 17 | . 15 21 Final Capacity 25 | 8 25 25 Final Carried 21 | 6 21 18 Class Distribution -------------------- 100% | Mutant Dominant Class ---------------- Mutant | -10/Materials Mutant | -10/Mines Resources | -11 -10 -10 ----------- Run | Scr Mat Min Matter Collected 525 | 200 248 77 Remotely . | . . . Salvage Created 753 | . 389 364 Parts 56 | . 24 32 Haulers Intercepted 2 | . 2 . Recyclers Shooed . | . . . Parts Field Recycled . | . . . Retrieved Matter . | . . . Parts Self-Destructed . | . . . Prevented . | . . . Kills | -11 -10 -10 ------- Run | Scr Mat Min Combat Hostiles Destroyed 22 | . 9 13 Guns 19 | . 9 10 AOE 3 | . . 3 Classes Destroyed 8 | . 5 3 Worker 2 | . . 2 Builder 2 | . 1 1 Tunneler 1 | . . 1 Hauler 2 | . 2 . Recycler 1 | . . 1 Watcher 2 | . 2 . Swarmer 17 | . 6 11 Grunt 5 | . 3 2 Best Kill Streak 7 | . 4 7 Combat Bots Only 3 | . 3 3 Max Kills in Single Turn 4 | . 1 4 Gunslinging 1 | . . 1 Exploded 2 | . . 2 Melee . | . . . Uniques/NPCs Destroyed . | . . . Combat | -11 -10 -10 -------- Run | Scr Mat Min Damage Taken 850 | . 262 588 Core 251 | . 48 203 Absorbed by Shields . | . . . Core Remaining (%) 100 | 100 . . Volleys Fired 56 | . 31 25 Largest 2 | . 2 2 Hottest 70 | . 70 70 Shots Fired 108 | . 62 46 Gun 105 | . 62 43 Cannon . | . . . Launcher 3 | . . 3 Special . | . . . Kinetic 54 | . 31 23 Thermal 51 | . 31 20 Explosive 3 | . . 3 Electromagnetic . | . . . Robot Hit Streak 18 | . 9 18 Robot Miss Streak 5 | . 5 4 Penetration Max . | . . . Secondary Targets 1 | . . 1 Max Gunslinging Chain 1 | . . 1 Shots Hit Robots 70 | . 39 31 Core Hits 41 | . 19 22 Critical Kills . | . . . Critical Parts Destroyed . | . . . Critical Strikes 2 | . 2 . Burn 2 | . 2 . Melee Attacks . | . . . Impact . | . . . Slashing . | . . . Piercing . | . . . Sneak Attacks . | . . . Combat Hostiles . | . . . Follow-up Attacks . | . . . Damage Inflicted 1175 | . 519 656 Guns 902 | . 510 392 Cannons . | . . . Explosions 264 | . . 264 Melee . | . . . Ramming 9 | . 9 . Kinetic 416 | . 229 187 Thermal 486 | . 281 205 Explosive 264 | . . 264 Electromagnetic . | . . . Impact . | . . . Slashing . | . . . Piercing . | . . . Highest Corruption . | . . . Average Corruption . | . . . Corruption Purged . | . . . Corruption Blocked . | . . . Overload Shots . | . . . Overflow Damage 8 | . . 8 Projectiles . | . . . Explosions 8 | . . 8 Melee . | . . . Knockbacks . | . . . Impact . | . . . Kinetic . | . . . Secondary . | . . . Self-Inflicted Damage 71 | . 4 67 Shots 2 | . . 2 Rammed 1 | . 1 . Targets Rammed 1 | . 1 . Kicked . | . . . Crushed . | . . . Highest Temperature 103 | . 99 103 Average Temperature 31 | . 29 35 Received Heat Transfer 169 | . 48 121 Siege Activations . | . . . Robots Corrupted . | . . . Combat Hostiles . | . . . Parts Fried . | . . . Impact Corruptions . | . . . Robots Melted . | . . . Combat Hostiles . | . . . Parts Melted 1 | . 1 . Heat Transferred 1554 | . 962 592 Parts Sabotaged . | . . . Parts Stolen . | . . . Parts Stripped . | . . . Power Chain Reactions . | . . . Missiles Intercepted . | . . . Alert | -11 -10 -10 ------- Run | Scr Mat Min Peak Influence 251 | . 214 251 Initial 61 | . . 61 Average 97 | . 84 116 Maximum Alert Level 1 | . 1 1 Low Security (%) 94 | . 90 99 Level 1 5 | . 9 . Level 2 . | . . . Level 3 . | . . . Level 4 . | . . . Level 5 . | . . . High Security . | . . . Max Security . | . . . Squads Dispatched 1 | . 1 . Investigation . | . . . Extermination . | . . . Reinforcement 1 | . 1 . Assault . | . . . Garrison . | . . . Intercept . | . . . Searches Triggered . | . . . Construction Impeded . | . . . Haulers Reinforced . | . . . Active Scanning Responses . | . . . Cargo Convoy Interrupts . | . . . Stealth | -11 -10 -10 --------- Run | Scr Mat Min Distress Signals 3 | . 3 . Communications Jammed . | . . . Distress Signals . | . . . Times Spotted 46 | . 19 27 Peak Tracking Total 14 | . 6 14 Tactical Retreats 5 | . 3 2 Traps | -11 -10 -10 ------- Run | Scr Mat Min Traps Triggered 3 | . 3 . Indirectly . | . . . Trap Hack Attempts . | . . . Triggered . | . . . Disarmed . | . . . Reprogrammed . | . . . Reused . | . . . Traps Extracted . | . . . Installed . | . . . Triggered . | . . . Machines | -11 -10 -10 ---------- Run | Scr Mat Min Machines Disabled . | . . . Max in Single Turn . | . . . Machines Sabotaged . | . . . Garrisons Compromised . | . . . Overloaded Fab Kills . | . . . Hacking | -11 -10 -10 --------- Run | Scr Mat Min Machines Accessed 5 | . 5 . Terminals 5 | . 5 . Fabricators . | . . . Repair Stations . | . . . Recycling Units . | . . . Scanalyzers . | . . . Garrison Access . | . . . Total Hacks 9 | . 9 . Successful 4 | . 4 . Failed 4 | . 4 . Catastrophic . | . . . Database Lockouts 1 | . 1 . Manual 5 | . 5 . Terminals 9 | . 9 . Fabricators . | . . . Repair Stations . | . . . Recycling Units . | . . . Scanalyzers . | . . . Garrison Access . | . . . Terminal Hacks 4 | . 4 . Robot Analysis 1 | . 1 . Prototype ID Bank 2 | . 2 . Hauler Manifests 1 | . 1 . Fabricator Hacks . | . . . Repair Station Hacks . | . . . Recycling Unit Hacks . | . . . Scanalyzer . | . . . Garrison Access Hacks . | . . . Unauthorized Hacks . | . . . Terminals . | . . . Fabricators . | . . . Repair Stations . | . . . Recycling Units . | . . . Scanalyzers . | . . . Garrison Access . | . . . Data Cores Recovered . | . . . Used . | . . . Hacking Detections 2 | . 2 . Full Trace Events . | . . . Feedback Events . | . . . Feedback Blocked . | . . . Robot Schematics Acquired . | . . . Robots Built . | . . . Authchips . | . . . Time . | . . . Total Robot Build Rating . | . . . Part Schematics Acquired . | . . . Parts Built . | . . . Authchips . | . . . Time . | . . . Total Part Build Rating . | . . . Parts Repaired . | . . . Time . | . . . Parts Recycled . | . . . Recycled Matter . | . . . Retrieved Matter . | . . . Retrieved Components . | . . . Parts Scanalyzed . | . . . Part Schematics Acquired . | . . . Parts Damaged . | . . . Bothacking | -11 -10 -10 ------------ Run | Scr Mat Min Used RIF Installer . | . . . Robots Hacked . | . . . Non-combat . | . . . Combat . | . . . Robot Hacks Applied . | . . . Relay Couplers Released . | . . . Fabnet Peak Effective % . | . . . Robots Rewired . | . . . Allies Hacked . | . . . Hacks Repelled . | . . . Allies | -11 -10 -10 -------- Run | Scr Mat Min Total Allies . | . . . Largest Group . | . . . Highest-Rated Group . | . . . Highest-Rated Ally . | . . . Total Orders . | . . . Ally Attacks . | . . . Total Damage . | . . . Kills . | . . . Allies Corrupted . | . . . Allies Melted . | . . . Intel | -11 -10 -10 ------- Run | Scr Mat Min Robot Analysis Total 1 | . 1 . Derelict Logs Recovered 1 | . . 1 Drone Launches . | . . . Drone Recoveries . | . . . Exploration | -11 -10 -10 ------------- Run | Scr Mat Min Turns Passed 1315 | . 784 531 Spaces Moved 754 | 1 436 317 Core . | . . . Treads . | . . . Legs 10 | 1 9 . Wheels 744 | . 427 317 Hover . | . . . Flight . | . . . Fastest Speed 115 | 120 115 125 Average Speed 137 | 120 135 140 Slowest Speed 200 | 120 175 200 Overloaded Moves . | . . . Propulsion Burnouts . | . . . Robots Hopped . | . . . Cave-ins Triggered . | . . . Exploration Rate (%) 41 | 2 70 51 Regions Visited 2 Branch Regions 1 Pre-discovered Areas 1 | . . 1 Known Exits Taken . | . . . Unknown Exits Taken 2 | 1 1 . Scrap Searched . | . . . Spaces Dug . | . . . Terrain Destroyed 27 | . . 27 Melee . | . . . Projectile . | . . . AOE 27 | . . 27 Terrain Rammed . | . . . Walls Destroyed . | . . . Machines Disabled . | . . . Actions | -11 -10 -10 --------- Run | Scr Mat Min Total 914 | . 558 356 Wait 65 | . 56 9 Move 752 | . 435 317 Hop . | . . . Pick Up 17 | . 16 1 Fast Attach 11 | . 11 . Attach 6 | . 2 4 Detach 1 | . 1 . Swap 4 | . 4 . Drop 1 | . 1 . Fire 56 | . 31 25 Melee . | . . . Ram 1 | . 1 . Kick . | . . . Crush . | . . . Escape Stasis . | . . . Rewire . | . . . Trap . | . . . Miscellaneous . | . . . Route ------- -11/Scrapyard -10/Materials (discovered 3 exits: [*Mat x2] / [*Min]) -10/Mines (discovered 1 exit: [*Exi]) History --------- Turn | Location | Event 1 | -11/Scrapyard | Discovered new exit (range 0) 1 | -11/Scrapyard | Entered Materials 33 | -10/Materials | Central database locked down 307 | -10/Materials | Build established: Mutant 314 | -10/Materials | Discovered new exit (range 9) 697 | -10/Materials | Discovered new exit (range 14) 727 | -10/Materials | Discovered new exit (range 16) 785 | -10/Materials | Entered Mines 814 | -10/Mines | Met a Derelict bent on vengeance 878 | -10/Mines | Deemed a non-threat by the Exiles lab entrance 878 | -10/Mines | Discovered new exit (range 5) 989 | -10/Mines | Learned location of Storage (-8) 1232 | -10/Mines | Core integrity fell below 50% 1278 | -10/Mines | Assembled infested the area 1283 | -10/Mines | Assisted by a Guerilla fighting off Assembled 1305 | -10/Mines | Core integrity fell below 20% 1316 | -10/Mines | Destroyed by S-10 Pest with Light Assault Rifle Last Messages --------------- 01293_ as-06777 destroyed. 01295_ Wheel destroyed. 01300_ C-30 ARC bursts open, deploying its payload. 01300_ D-53 Grenadier unfolds itself. 01300_ Assault Rifle destroyed. 01300_ Lgt. Ion Engine destroyed. 01301_ Terrain Scanner destroyed. 01301_ Lgt. Assault Rifle destroyed. 01311_ S-10 Pest destroyed. 01311_ Wheel destroyed. 01311_ Destroyed Wheel. 01311_ R-06 Scavenger destroyed. 01311_ K-01 Serf destroyed. 01312_ U-05 Engineer lays Concrete. 01313_ U-05 Engineer builds a Wall. 01315_ The unstable cave ceiling collapses. 01315_ S-10 Pest destroyed. 01315_ U-05 Engineer destroyed. 01315_ K-01 Serf destroyed. 01315_ S-10 Pest destroyed. Map ----- +----------------------------------------------------+ | ?????????????????????????????????????????????????? | | ?????????????????????????????????????????????????? | | ????????????????????????????????????? ??????????? | | ?????????????????????????????????????$ ??????????? | | ????????????????????????????????????? #?????????? | | ????????????????????????????????????? #?????????? | | ????????????????????????????????????? #?????????? | | ????????????????????????????????????? #?????????? | | ????????????????????????????????????? #?????????? | | ????????????????????????????????????# ##????????? | | ??????????????????????????#???????#?# ##????????? | | ?????????????????????????????#??????# ##??????#? | | ??????????????????????#?????????????# ##??????? | | ?????????????????????????#?????????## #??????? | | ??????????????????????????????????## #??????? | | ???????????????????????????????#?## #??????? | | ??????????????#???#????????????###% #???????? | | ?????????????????#???????###?### %% #### #??? | | ????????????????#??????### #### % #??? | | ?????????? ????###????# # "#####??? | | ?????????# ### #### = ###??????? | | ?????????# # *%! # ##????????? | | ?????????? s = #### #????#????? | | ??????????????# %%= %!* [= #?## ##?????#???? | | ????????????????#= =%% % [ #???### ###??????????? | | ????????????????# ! @##?????####????????????? | | ????????????#???# # # #????#????##??????????? | | ????????????????#???##??# #?????????????????????? | | ????????????????##????### ##??#?#????????????????? | | ??????????????????????# #???????#??????????????? | | ??????????????????????# ###??#????#??????????????? | | ??????????##??######??# #?#????????????#?????????? | | ??????????# #??# ###?#################????? | | ??????????# """ #??# ##??# #????? | | ??????????# """ #??# #??## ##???? | | ??????????# """ #??# #???# #?#??# | | ??????????? #??# ##?## """ """ """ #?#??? | | ????????????? #?## #?#?# """ """ """ #????? | | ??????????????? #??# #??## """ """ """ #?#??? | | ????????????????# ##### #?### ##???# | | ???????????????## #???# """ """ """ #????? | | ????????#??????##=#######?### """ """ """ ###??? | | ??????????????##%%##????????# """ """ """ #????? | | ????????????#?# *[ ##??#????# [% ##???? | | ???????#???#?## ##??#???#### #############?#?? | | ??????####### ###########%############????? | | #???#?# % [[=#????? | | ###?#?# """ ####### #############%#????? | | ?????# ## """ #???#?# #???????#?#?#*#??#?# | | ?????# ??## """ ##???#?# ##?#?#???#??#%#?#??? | +----------------------------------------------------+ Best States ------------- Heat Dissipation 25 Energy Generation 10 Energy Capacity 125 Matter Stores 300 Matter Capacity 300 Sight Range 16 Terrain Scan Range 14 Terrain Scan Density 10 Evasion (%) 55 Recoil Reduction 1 Item Schematics ----------------- None Robot Schematics ------------------ None Fabricated ------------ Nothing Alien Tech Used ----------------- None Achievements -------------- None Challenges ------------ None Game ------ Seed CoordinationCoreAxe Manual? 0 Play Time 00:10:46 Cumulative 376.0 hours Start 2022.07.05 @ 13:24:31 End 2022.07.05 @ 15:06:36 Sessions 3 Manual Loads 0 Difficulty Rogue Special Mode None Game No. 449 Rogue 448 Adventurer 0 Explorer 1 Win Type - Total 9 Types 6/0/1/2/0/0/0/0/0 Lore% 74 Gallery% 85 Achievement% 62 Wizard Run 0 Options --------- ASCII 0 Keyboard 1 Movement Vi Keybinds 0 Fullscreen 1 Font 18/SmallcapsGlow Map View 76x50 Tactical HUD 1 Map Filters NONE Filters NONE Steam 1 RUN: c8fbca88-6ffd-49a4-9284-7e09e34f0ab4